bitfinex/quotes_SOLUSD_20250206
["timestamp","ask_amount","ask_price","bid_price","bid_amount"]
[1738865244674,0.0300147,191.03,191.01,23.8049093]
[1738865244965,0.0300147,191.03,191.02,23.7419093]
[1738865245165,0.0300147,191.03,191.02,38.44078443]
[1738865245166,1.47e-05,191.03,191.02,38.44078443]
[1738865245487,3.024e-05,191.04,191.03,0.37647]
[1738865245670,3.024e-05,191.04,191.03,24.1183793]
[1738865246070,3.024e-05,191.04,191.03,29.3530793]
[1738865247178,0.13833757,191.06,191.05,0.37647]
[1738865247179,4.671e-05,191.06,191.05,0.37647]
[1738865247382,4.671e-05,191.06,191.05,37.53022783]
[1738865248591,4.671e-05,191.06,191.05,37.40473783]
[1738865248765,4.671e-05,191.06,191.05,23.9928893]
[1738865249092,4.671e-05,191.06,191.05,0.25098]
[1738865249460,4.671e-05,191.06,191.05,5.48518]
[1738865249973,4.671e-05,191.06,191.05,5.2342]
[1738865250170,4.671e-05,191.06,191.02,23.7419093]
[1738865250371,4.671e-05,191.06,191.02,5.235]
[1738865252193,23.7419093,191.05,191.01,0.063]
[1738865252690,23.7419093,191.02,191.01,0.063]
[1738865253470,25.3507093,191.02,191.01,0.063]
[1738865253789,25.4647789,191.02,191.01,0.063]
[1738865254163,26.5117789,191.02,191.01,0.063]
[1738865255071,1.7228696,191.02,191.01,0.063]
[1738865255464,0.1140696,191.02,191.01,0.063]
[1738865257181,0.1140696,191.02,191.01,23.8049093]
[1738865258294,0.1140696,191.02,191.01,29.0402093]
[1738865258671,0.1140696,191.02,191.01,5.2983]
[1738865258862,0.1140696,191.02,191.01,0.063]
[1738865259063,0.1140696,191.02,191.01,5.2983]
[1738865259389,0.1140696,191.02,191.01,29.2911893]
[1738865259968,0.1140696,191.02,191.01,29.0402093]
[1738865260173,0.1140696,191.02,191.01,5.2983]
[1738865260798,0.1140696,191.02,191.01,29.0402093]
[1738865261801,0.1140696,191.02,191.01,5.2983]
[1738865262701,0.1140696,191.02,191.01,29.0402093]
[1738865262916,0.1140696,191.02,191.01,29.2911893]
[1738865263400,0.1140696,191.02,191.01,29.0402093]
[1738865265396,0.1140696,191.02,191.01,5.2983]
[1738865265595,0.1140696,191.02,191.01,29.0402093]
[1738865269807,0.1140696,191.02,191.01,5.2983]
[1738865271000,0.1140696,191.02,191.01,0.063]
[1738865271206,24.9029789,191.02,191.01,0.063]
[1738865271416,23.8559789,191.02,191.01,0.063]
[1738865271614,0.10709397,191.03,191.01,0.063]
[1738865271615,23.46307287,191.03,191.01,0.063]
[1738865271996,23.7419093,191.02,191.01,0.063]
[1738865272710,23.7419093,191.03,191.01,0.063]
[1738865273023,0.11040837,191.04,191.01,23.8049093]
[1738865273320,0.11040837,191.04,191.03,23.7419093]
[1738865273706,0.21499334,191.04,191.01,0.063]
[1738865273910,0.10458497,191.04,191.01,23.8049093]
[1738865274225,0.10458497,191.04,191.02,28.9769093]
[1738865275513,0.10458497,191.04,191.03,23.7419093]
[1738865275733,0.10458497,191.04,191.03,28.9766093]
[1738865275925,0.10458497,191.04,191.03,29.2275893]
[1738865276224,0.10458497,191.04,191.03,42.63943783]
[1738865276422,8.497e-05,191.04,191.03,42.76492783]
[1738865276733,0.14035927,191.06,191.05,20.37647]
[1738865276734,3.936e-05,191.06,191.05,20.37647]
[1738865277027,0.08768358,191.07,191.05,58.44052965]
[1738865277225,8.358e-05,191.07,191.06,37.53022783]
[1738865277427,8.358e-05,191.07,191.06,37.40473783]
[1738865277623,7.1e-05,191.08,191.07,19.14740853]
[1738865277802,7.1e-05,191.08,191.07,44.99944543]
[1738865278002,7.1e-05,191.08,191.07,52.84464543]
[1738865278606,7.1e-05,191.08,191.07,51.51925582]
[1738865279004,7.1e-05,191.08,191.07,27.77734652]
[1738865279330,7.1e-05,191.08,191.07,18.89642853]
[1738865279702,7.1e-05,191.08,191.07,5.48458]
[1738865280328,7.1e-05,191.08,191.06,28.9758093]
[1738865280633,7.1e-05,191.08,191.06,5.2339]
[1738865280803,7.1e-05,191.08,191.04,28.9761093]
[1738865281007,23.7419803,191.08,191.02,9.9347]
[1738865281220,23.7419803,191.08,191.02,4.7]
[1738865281221,23.7419093,191.05,191.02,4.7]
[1738865281421,23.7419093,191.06,191.01,5.2982]
[1738865281610,23.7419093,191.07,191.01,5.2982]
[1738865282137,23.7419093,191.07,191.01,29.0401093]
[1738865282634,23.7419093,191.07,191.01,5.2982]
[1738865282937,7.1e-05,191.08,191.01,5.2982]
[1738865282938,23.7419093,191.06,191.01,5.2982]
[1738865283230,23.7419093,191.06,191.01,0.063]
[1738865283528,23.7419093,191.03,191.01,0.063]
[1738865283909,23.7419093,191.02,191.01,0.063]
[1738865284232,43.7419093,191.07,191.01,0.063]
[1738865285633,23.7419093,191.07,191.01,0.063]
[1738865286017,23.7419803,191.08,191.01,23.8049093]
[1738865286213,23.7419803,191.08,191.02,23.7419093]
[1738865286835,23.7419803,191.08,191.03,5.2347]
[1738865287333,7.1e-05,191.08,191.06,23.7419093]
[1738865287722,7.1e-05,191.08,191.04,23.7419093]
[1738865287910,7.1e-05,191.08,191.03,28.9766093]
[1738865288618,23.7419093,191.07,191.01,5.2983]
[1738865288823,23.7419803,191.08,191.01,29.0402093]
[1738865289132,7.1e-05,191.08,191.04,23.7419093]
[1738865289632,7.1e-05,191.08,191.05,23.7419093]
[1738865289943,7.1e-05,191.08,191.03,23.7419093]
[1738865290931,23.7419803,191.08,191.02,23.7419093]
[1738865291439,23.7419093,191.07,191.01,23.8049093]
[1738865291729,23.7419093,191.03,191.01,0.063]
[1738865292032,23.7419093,191.02,191.01,0.063]
[1738865293234,24.9143993,191.02,191.01,0.063]
[1738865293744,39.4278282,191.02,191.01,0.063]
[1738865296034,64.4207175,191.02,191.01,0.063]
[1738865296242,40.6788082,191.02,191.01,0.063]
[1738865296420,25.01597967,191.02,191.01,0.063]
[1738865296622,23.84348967,191.02,191.01,0.063]
[1738865297121,24.89048967,191.02,191.01,0.063]
[1738865297520,70.4278282,191.02,191.01,0.063]
[1738865298014,24.89048967,191.02,191.01,0.063]
[1738865299448,69.4278282,191.02,191.01,0.063]
[1738865299639,68.4278282,191.02,191.01,0.063]
[1738865300320,38.4278282,191.02,191.01,0.063]
[1738865300525,24.89048967,191.02,191.01,0.063]
[1738865300731,23.84348967,191.02,191.01,0.063]
[1738865300931,0.10158037,191.02,191.01,0.063]
[1738865301721,0.10158037,191.02,191.01,23.8049093]
[1738865302539,0.10158037,191.02,191.01,0.063]
[1738865302721,0.10158037,191.02,191.01,23.8049093]
[1738865303239,0.10158037,191.02,191.01,0.063]
[1738865303743,0.10158037,191.02,191.01,23.8049093]
[1738865305849,0.10158037,191.02,191.01,5.2983]
[1738865306049,0.10158037,191.02,191.01,0.063]
[1738865306751,23.84348967,191.02,191.01,0.063]
[1738865307251,24.89048967,191.02,191.01,0.063]
[1738865308126,23.84348967,191.02,191.01,0.063]
[1738865308425,0.10158037,191.02,191.01,0.063]
[1738865308947,0.10158037,191.02,191.01,23.8049093]
[1738865310047,31.0,190.83,190.81,0.063]
[1738865310246,2.0,190.73,190.66,13.112]
[1738865310426,2.0,190.73,190.65,6.2311]
[1738865310427,25.7419093,190.73,190.65,6.2311]
[1738865310631,25.7419093,190.73,190.66,5.2448]
[1738865310955,23.7419093,190.73,190.7,5.3067]
[1738865311144,24.7419093,190.73,190.7,5.3067]
[1738865311345,23.7419093,190.73,190.7,5.3067]
[1738865311652,2.0,190.73,190.7,5.3067]
[1738865311825,2.0,190.74,190.7,5.3067]
[1738865312021,2.0,190.73,190.7,5.3067]
[1738865312243,25.7419093,190.73,190.7,0.063]
[1738865312829,40.64236119,190.73,190.7,0.063]
[1738865313744,40.74450166,190.73,190.7,0.063]
[1738865314556,80.17229483,190.73,190.7,0.063]
[1738865314924,41.52993364,190.73,190.7,0.063]
[1738865315258,0.10214047,190.73,190.71,0.25098]
[1738865316057,0.10214047,190.73,190.72,5.3062]
[1738865316553,0.10214047,190.73,190.72,44.19954119]
[1738865316727,0.10214047,190.73,190.72,57.61138972]
[1738865317324,0.10214047,190.73,190.72,5.3062]
[1738865317529,1.10214047,190.73,190.72,5.3062]
[1738865317938,0.10214047,190.73,190.72,43.94856119]
[1738865318937,4.047e-05,190.73,190.72,57.73687972]
[1738865319147,8.694e-05,190.74,190.73,13.91380853]
[1738865319353,0.103854,190.75,190.73,52.43067972]
[1738865319354,4.094e-05,190.75,190.73,52.43067972]
[1738865319856,4.094e-05,190.75,190.74,39.01883119]
[1738865320553,4.094e-05,190.75,190.74,38.89334119]
[1738865320936,4.094e-05,190.75,190.74,5.2427]
[1738865321139,1.00004094,190.75,190.73,5.243]
[1738865321656,2.00004094,190.75,190.73,5.243]
[1738865322160,1.00004094,190.75,190.73,5.243]
[1738865322752,2.0,190.74,190.73,5.243]
[1738865323130,2.0,190.74,190.72,0.063]
[1738865323131,2.0,190.73,190.72,0.063]
[1738865323526,2.0,190.73,190.72,5.3062]
[1738865324454,1.0,190.73,190.72,5.3062]
[1738865324761,2.0,190.74,190.72,5.3062]
[1738865324954,2.00004094,190.75,190.72,5.3062]
[1738865325138,4.094e-05,190.75,190.72,5.3062]
[1738865325339,4.094e-05,190.75,190.73,38.64236119]
[1738865325531,4.094e-05,190.75,190.74,52.30518972]
[1738865325735,4.094e-05,190.75,190.74,52.43067972]
[1738865326570,4.298e-05,190.78,190.77,20.37647]
[1738865326736,4.298e-05,190.78,190.77,59.01883119]
[1738865326937,4.298e-05,190.78,190.77,64.26073119]
[1738865327165,4.298e-05,190.78,190.77,77.54708972]
[1738865327345,4.298e-05,190.78,190.77,5.49288]
[1738865327640,4.298e-05,190.78,190.77,5.2419]
[1738865327843,1.00004298,190.78,190.77,5.2419]
[1738865328063,2.00004298,190.78,190.77,5.2419]
[1738865328761,1.0,190.75,190.72,0.063]
[1738865329073,2.0,190.74,190.73,5.243]
[1738865329360,2.0,190.74,190.72,0.063]
[1738865329554,1.0,190.74,190.72,0.063]
[1738865329757,2.0,190.74,190.72,0.063]
[1738865329948,2.0,190.73,190.72,0.063]
[1738865331341,4.298e-05,190.78,190.75,0.25098]
[1738865331678,4.298e-05,190.78,190.77,38.89334119]
[1738865331959,4.298e-05,190.78,190.75,38.64236119]
[1738865332161,1.00004298,190.78,190.75,38.64236119]
[1738865332368,4.298e-05,190.78,190.75,38.64236119]
[1738865332749,1.0,190.76,190.72,38.70536119]
[1738865332947,1.0,190.76,190.73,0.25098]
[1738865333465,2.0,190.73,190.72,0.063]
[1738865334366,1.0,190.73,190.72,5.3062]
[1738865334534,0.10272975,190.74,190.72,43.94856119]
[1738865334737,0.10272975,190.74,190.73,38.64236119]
[1738865335050,0.10272975,190.74,190.73,38.89334119]
[1738865335450,0.10272975,190.74,190.73,5.49398]
[1738865335646,0.10272975,190.74,190.73,44.13634119]
[1738865335958,0.10272975,190.74,190.73,18.90582853]
[1738865336171,1.10272975,190.74,190.73,5.243]
[1738865336347,2.10272975,190.74,190.73,5.243]
[1738865336544,2.0,190.73,190.72,0.063]
[1738865337072,1.0,190.73,190.72,5.3062]
[1738865337364,1.10272975,190.74,190.72,5.3062]
[1738865337567,0.10272975,190.74,190.72,0.063]
[1738865337769,0.10272975,190.74,190.73,38.64236119]
[1738865338142,0.10272975,190.74,190.72,38.70536119]
[1738865338543,0.10272975,190.74,190.72,0.063]
[1738865339244,1.0,190.73,190.72,0.063]
[1738865339567,2.0,190.73,190.72,0.063]
[1738865339941,2.10272975,190.74,190.72,0.063]
[1738865340145,0.10272975,190.74,190.72,38.70536119]
[1738865340568,1.10272975,190.74,190.72,0.063]
[1738865341163,0.10272975,190.74,190.72,0.063]
[1738865341363,1.10272975,190.74,190.72,0.063]
[1738865341649,1.0,190.73,190.72,0.063]
[1738865342057,0.10272975,190.74,190.72,0.063]
[1738865342372,0.10272975,190.74,190.73,38.89334119]
[1738865342575,0.10272975,190.74,190.73,52.30518972]
[1738865342757,0.10272975,190.74,190.73,13.66282853]
[1738865342955,1.10272975,190.74,190.72,0.063]
[1738865343154,1.0,190.73,190.72,0.063]
[1738865343355,2.0,190.73,190.72,0.063]
[1738865343865,1.0,190.73,190.72,0.063]
[1738865344056,2.0,190.73,190.72,0.063]
[1738865344263,25.76216993,190.73,190.72,0.063]
[1738865344849,26.54760191,190.73,190.72,0.063]
[1738865345049,25.76216993,190.73,190.72,0.063]
[1738865347755,26.81076993,190.73,190.72,0.063]
[1738865348653,25.76216993,190.73,190.72,0.063]
[1738865348851,2.0,190.73,190.72,0.063]
[1738865349051,25.76216993,190.73,190.72,0.063]
[1738865349272,26.93625993,190.73,190.72,0.063]
[1738865349458,27.72169191,190.73,190.72,0.063]
[1738865350258,26.54760191,190.73,190.72,0.063]
[1738865350462,27.59620191,190.73,190.72,0.063]
[1738865351078,27.72169191,190.73,190.72,0.063]
[1738865351460,16.53733853,190.71,190.7,0.063]
[1738865351665,1.0,190.63,190.62,0.063]
[1738865351977,25.76216993,190.63,190.62,0.063]
[1738865353650,25.87744681,190.63,190.62,0.063]
[1738865353854,2.11527688,190.63,190.62,0.063]
[1738865354158,0.11527688,190.63,190.62,0.063]
[1738865354361,3.748e-05,190.65,190.64,20.25098]
[1738865354587,3.748e-05,190.65,190.64,33.66282853]
[1738865354872,3.748e-05,190.65,190.64,43.76216993]
[1738865355055,3.748e-05,190.65,190.63,23.76216993]
[1738865355254,3.748e-05,190.65,190.64,23.76216993]
[1738865355457,1.00003748,190.65,190.62,24.07614993]
[1738865355652,1.00003748,190.65,190.62,23.82516993]
[1738865355858,3.748e-05,190.65,190.64,42.54490846]
[1738865356357,3.748e-05,190.65,190.64,5.2454]
[1738865357359,3.748e-05,190.65,190.64,29.00756993]
[1738865357563,3.748e-05,190.65,190.64,42.67039846]
[1738865358273,3.748e-05,190.65,190.64,18.90822853]
[1738865358674,3.748e-05,190.65,190.64,5.49638]
[1738865358869,3.748e-05,190.65,190.64,29.25854993]
[1738865359276,3.748e-05,190.65,190.64,29.32154993]
[1738865359578,3.748e-05,190.65,190.64,5.55938]
[1738865359981,3.748e-05,190.65,190.64,29.32154993]
[1738865360787,3.748e-05,190.65,190.64,42.73339846]
[1738865360974,8.277e-05,190.66,190.65,25.68583993]
[1738865361276,0.11121263,190.67,190.65,25.30936993]
[1738865361277,9.54e-05,190.67,190.65,25.30936993]
[1738865361466,9.54e-05,190.67,190.66,44.01314993]
[1738865363478,9.54e-05,190.67,190.66,62.66989846]
[1738865363774,2.038e-05,190.69,190.67,0.12549]
[1738865364099,2.038e-05,190.69,190.68,23.76216993]
[1738865364285,2.038e-05,190.69,190.68,24.01314993]
[1738865365379,2.038e-05,190.69,190.68,29.25744993]
[1738865366684,2.038e-05,190.69,190.68,42.66929846]
[1738865366887,2.544e-05,190.72,190.71,20.0]
[1738865367060,2.544e-05,190.72,190.71,57.17401846]
[1738865367259,2.544e-05,190.72,190.71,62.79398846]
[1738865367657,2.544e-05,190.72,190.71,62.91947846]
[1738865367858,2.544e-05,190.72,190.71,63.70567505]
[1738865368573,2.544e-05,190.72,190.71,62.79398846]
[1738865369290,2.544e-05,190.72,190.71,64.13491799]
[1738865370601,2.544e-05,190.72,190.71,65.41706549]
[1738865370784,2.544e-05,190.72,190.71,65.54255549]
[1738865371477,2.544e-05,190.72,190.71,41.78038556]
[1738865373781,7.17e-06,190.75,190.74,20.37647]
[1738865374385,0.09466901,190.77,190.75,0.12549]
[1738865374584,8.592e-05,190.79,190.78,0.50196]
[1738865374894,4.936e-05,190.8,190.79,20.0]
[1738865375275,4.936e-05,190.8,190.79,23.76216993]
[1738865375481,4.936e-05,190.8,190.77,24.01314993]
[1738865375664,4.936e-05,190.8,190.78,0.25098]
[1738865375864,4.936e-05,190.8,190.79,29.00346993]
[1738865376077,4.936e-05,190.8,190.79,5.2413]
[1738865377091,1.00004936,190.8,190.79,5.2413]
[1738865377472,1.0,190.76,190.73,18.3505]
[1738865377675,1.0,190.75,190.73,18.3505]
[1738865377998,2.0,190.76,190.73,13.1075]
[1738865379698,1.0,190.76,190.73,18.3505]
[1738865379868,1.0,190.77,190.74,13.66282853]
[1738865380074,4.936e-05,190.8,190.76,24.01314993]
[1738865380290,4.936e-05,190.8,190.78,23.76216993]
[1738865380484,1.0,190.79,190.77,23.76216993]
[1738865380797,1.0,190.79,190.76,0.12549]
[1738865380798,1.0,190.79,190.76,24.01314993]
[1738865381369,2.0,190.79,190.76,24.01314993]
[1738865381872,1.0,190.79,190.77,5.2419]
[1738865382069,1.0,190.76,190.71,23.76216993]
[1738865382271,2.0,190.71,190.7,1.31166032]
[1738865382488,1.0,190.65,190.63,0.063]
[1738865382684,25.76216993,190.65,190.63,0.063]
[1738865383184,26.54760191,190.65,190.63,0.063]
[1738865383575,25.76216993,190.65,190.63,5.3087]
[1738865383772,1.0,190.65,190.63,0.063]
[1738865384087,2.0,190.67,190.63,5.3087]
[1738865384470,1.0,190.68,190.64,0.31398]
[1738865384683,2.0,190.71,190.67,23.76216993]
[1738865384893,1.0,190.7,190.67,23.76216993]
[1738865385083,1.0,190.69,190.66,23.76216993]
[1738865385399,1.0,190.7,190.65,23.76216993]
[1738865385595,1.0,190.71,190.66,23.76216993]
[1738865385790,2.03,190.72,190.67,37.42499846]
[1738865385991,1.0,190.7,190.68,42.11736993]
[1738865386172,0.03,190.72,190.68,42.11736993]
[1738865386374,2.03,190.72,190.69,23.76216993]
[1738865386575,1.0,190.69,190.68,18.3552]
[1738865386801,1.0,190.7,190.68,18.3552]
[1738865387597,1.03,190.72,190.68,42.11736993]
[1738865387900,0.03,190.72,190.69,23.76216993]
[1738865388091,1.03,190.72,190.7,5.2438]
[1738865388294,2.0,190.71,190.7,5.2438]
[1738865388612,1.0,190.71,190.7,5.2438]
[1738865389295,1.0,190.71,190.68,18.3552]
[1738865389485,0.03,190.72,190.68,42.11736993]
[1738865389885,1.03,190.72,190.68,42.11736993]
[1738865390087,2.03,190.72,190.68,42.11736993]
[1738865390603,1.0,190.73,190.69,37.42499846]
[1738865390895,23.76221929,190.8,190.72,23.76216993]
[1738865391111,4.936e-05,190.8,190.74,23.76216993]
[1738865391281,4.936e-05,190.8,190.75,23.76216993]
[1738865391678,4.936e-05,190.8,190.77,23.76216993]
[1738865391991,4.936e-05,190.8,190.78,23.76216993]
[1738865392609,4.936e-05,190.8,190.79,5.2413]
[1738865392809,5.81e-05,190.81,190.79,29.00346993]
[1738865393102,5.81e-05,190.81,190.8,23.76216993]
[1738865393677,1.191e-05,190.81,190.8,23.76216993]
[1738865393878,9.079e-05,190.82,190.79,5.2413]
[1738865394277,9.079e-05,190.82,190.73,0.78602116]
[1738865394278,9.079e-05,190.82,190.72,151.59053242]
[1738865394483,9.079e-05,190.82,190.73,18.3505]
[1738865394484,23.76216993,190.78,190.73,18.3505]
[1738865394675,23.76216993,190.77,190.73,13.1075]
[1738865394989,9.079e-05,190.82,190.73,13.1075]
[1738865394990,23.76216993,190.79,190.73,36.86966993]
[1738865395389,23.76216993,190.8,190.73,36.86966993]
[1738865395604,23.76216993,190.8,190.74,23.76216993]
[1738865395903,23.79226072,190.82,190.76,23.76216993]
[1738865396100,0.03009079,190.82,190.78,37.42499846]
[1738865396286,4.613e-05,190.84,190.81,23.76216993]
[1738865396487,4.613e-05,190.84,190.82,23.76216993]
[1738865396895,9.543e-05,190.85,190.83,5.49118]
[1738865397085,2.726e-05,190.87,190.84,23.76216993]
[1738865397293,2.582e-05,190.88,190.86,23.76216993]
[1738865397497,3.646e-05,190.89,190.87,23.76216993]
[1738865399116,3.646e-05,190.89,190.88,5.2388]
[1738865399285,2.674e-05,190.92,190.9,13.41184853]
[1738865399488,2.674e-05,190.92,190.91,23.76216993]
[1738865400188,2.674e-05,190.92,190.9,37.17401846]
[1738865400403,2.674e-05,190.92,190.91,37.42499846]
[1738865400820,2.674e-05,190.92,190.89,23.76216993]
[1738865400992,2.674e-05,190.92,190.88,5.2388]
[1738865400993,23.76216993,190.91,190.88,5.2388]
[1738865401314,23.76216993,190.91,190.85,5.2397]
[1738865401517,2.674e-05,190.92,190.87,0.12549]
[1738865401818,2.674e-05,190.92,190.89,0.25098]
[1738865402205,2.674e-05,190.92,190.89,0.12549]
[1738865402515,2.674e-05,190.98,190.92,1.0]
[1738865402687,2.674e-05,190.98,190.97,37.42499846]
[1738865402886,2.674e-05,191.0,190.97,37.55048846]
[1738865403089,2.674e-05,191.0,190.99,37.55048846]
[1738865403301,2.674e-05,191.0,190.99,42.78628846]
[1738865403497,2.674e-05,191.0,190.99,5.2358]
[1738865403719,23.76219667,191.0,190.99,5.2358]
[1738865403922,2.674e-05,191.0,190.95,5.2369]
[1738865404413,2.674e-05,191.0,190.91,5.238]
[1738865404622,23.76216993,190.96,190.91,5.238]
[1738865404804,23.76216993,190.96,190.91,18.3331]
[1738865405430,23.76216993,190.98,190.91,42.09526993]
[1738865405720,23.76216993,190.99,190.92,23.76216993]
[1738865406221,2.674e-05,191.0,190.94,23.76216993]
[1738865407019,2.674e-05,191.0,190.96,23.76216993]
[1738865407222,2.674e-05,191.0,190.98,23.76216993]
[1738865407606,2.674e-05,191.0,190.99,5.2358]
[1738865409606,2.674e-05,191.0,190.97,42.66139846]
[1738865409810,2.674e-05,191.0,190.98,23.76216993]
[1738865410020,2.674e-05,191.0,190.99,37.67597846]
[1738865411613,2.674e-05,191.0,190.99,42.91177846]
[1738865413206,2.674e-05,191.0,190.99,43.6968468]
[1738865413409,2.674e-05,191.0,190.99,42.91177846]
[1738865413835,8.267e-05,191.01,191.0,0.12549]
[1738865414208,8.267e-05,191.01,191.0,0.91058201]
[1738865414408,0.10596098,191.02,191.01,0.37647]
[1738865414409,4.365e-05,191.02,191.01,0.37647]
[1738865414631,2.249e-05,191.04,191.03,13.78831853]
[1738865414803,6.824e-05,191.06,191.04,0.12549]
[1738865415625,6.824e-05,191.06,191.05,37.42499846]
[1738865415805,6.824e-05,191.06,191.05,42.65919846]
[1738865416341,6.824e-05,191.06,191.05,5.2342]
[1738865416708,23.76223817,191.06,190.99,13.0894]
[1738865417004,23.76216993,191.03,190.99,13.0894]
[1738865417426,23.76223817,191.06,190.99,36.85156993]
[1738865417629,23.76223817,191.06,191.01,18.3236]
[1738865417831,23.76223817,191.06,191.02,23.76216993]
[1738865417832,6.824e-05,191.06,191.02,23.76216993]
[1738865418421,6.824e-05,191.06,191.02,13.66282853]
[1738865418808,6.824e-05,191.06,191.01,18.3236]
[1738865419008,6.824e-05,191.06,191.04,23.76216993]
[1738865419209,6.824e-05,191.06,191.03,23.76216993]
[1738865419429,22.83981186,191.1,191.03,23.76216993]
[1738865419814,22.83981186,191.1,191.04,5.2345]
[1738865420026,23.76216993,191.11,191.04,28.99666993]
[1738865420233,23.76216993,191.11,191.05,13.66282853]
[1738865420546,29.89366993,191.13,191.06,23.76216993]
[1738865420916,23.76216993,191.12,191.05,37.48799846]
[1738865421115,0.03,191.06,191.05,37.48799846]
[1738865421535,25.27916993,191.16,191.06,0.25098]
[1738865421737,25.27916993,191.16,191.1,5.2328]
[1738865422116,23.76216993,191.15,191.1,5.2328]
[1738865422813,23.76216993,191.14,191.1,5.2328]
[1738865423142,1.517,191.16,191.1,5.2328]
[1738865423143,23.76216993,191.13,191.1,5.2328]
[1738865423339,23.76216993,191.12,191.06,5.2339]
[1738865423939,23.76216993,191.14,191.08,5.2334]
[1738865424124,1.517,191.16,191.09,23.76216993]
[1738865424125,25.27916993,191.16,191.09,23.76216993]
[1738865424521,23.76216993,191.17,191.1,23.76216993]
[1738865425432,6.41,191.18,191.09,37.42499846]
[1738865425433,23.76216993,191.16,191.09,37.42499846]
[1738865425632,23.76216993,191.15,191.09,13.66282853]
[1738865426118,23.76216993,191.15,191.1,5.2328]
[1738865426320,23.76216993,191.12,191.1,5.2328]
[1738865426541,23.76216993,191.13,191.1,5.2328]
[1738865426936,23.76216993,191.15,191.1,5.2328]
[1738865427644,23.76216993,191.14,191.1,5.2328]
[1738865428019,23.76216993,191.14,191.08,13.66282853]
[1738865428226,23.76216993,191.14,191.08,18.89622853]
[1738865428529,23.76216993,191.13,191.08,18.89622853]
[1738865428721,23.76216993,191.11,191.08,5.2334]
[1738865428927,23.76216993,191.1,191.08,5.2334]
[1738865429424,1.0462,191.16,191.05,0.063]
[1738865429425,23.76216993,191.09,191.06,5.2336]
[1738865429624,23.76216993,191.07,191.05,5.2971]
[1738865429840,23.76216993,191.06,191.05,0.063]
[1738865431338,30.08026993,191.08,191.05,0.063]
[1738865431854,23.76216993,191.06,191.05,0.063]
[1738865433646,23.86426021,191.06,191.05,0.063]
[1738865434436,0.10209028,191.06,191.05,0.063]
[1738865434949,0.10209028,191.06,191.05,37.48799846]
[1738865435247,0.10209028,191.06,191.05,37.61348846]
[1738865435449,9.028e-05,191.06,191.05,37.73897846]
[1738865435643,7.181e-05,191.07,191.06,13.91380853]
[1738865435847,7.8e-05,191.09,191.07,0.12549]
[1738865436054,7.8e-05,191.09,191.08,38.33516602]
[1738865436423,7.8e-05,191.09,191.05,0.063]
[1738865436740,20.0,191.03,190.88,1.5634]
[1738865436920,0.12549,191.0,190.89,5.2386]
[1738865437117,20.0,190.97,190.86,5.2394]
[1738865437349,20.0,190.97,190.85,0.063]
[1738865437350,23.76216993,190.91,190.85,0.063]
[1738865437543,23.76216993,190.87,190.85,0.063]
[1738865437851,23.76216993,190.86,190.85,0.063]
[1738865438226,20.0,190.83,190.74,29.00466993]
[1738865438424,23.76216993,190.78,190.71,23.82516993]
[1738865438625,23.76216993,190.81,190.74,23.76216993]
[1738865438928,7.2463,190.88,190.72,6.02927877]
[1738865438929,20.0,190.85,190.72,6.02927877]
[1738865439130,6.1985,190.88,190.76,13.91380853]
[1738865439333,1.83293198,190.93,190.76,14.69977724]
[1738865439536,20.0,190.91,190.76,14.69977724]
[1738865439737,23.76216993,190.88,190.81,23.76216993]
[1738865439921,23.76216993,190.89,190.82,37.42499846]
[1738865440125,23.76216993,190.9,190.83,23.76216993]
[1738865440326,23.76216993,190.9,190.82,24.01314993]
[1738865440529,20.0,190.91,190.84,5.2399]
[1738865440530,23.76216993,190.89,190.84,5.2399]
[1738865440744,23.76216993,190.87,190.82,5.2404]
[1738865441254,23.76216993,190.86,190.82,5.2404]
[1738865441439,23.76216993,190.87,190.82,5.2404]
[1738865441750,23.76216993,190.88,190.82,5.2404]
[1738865441920,20.0,190.91,190.78,23.76216993]
[1738865441921,23.76216993,190.85,190.78,23.76216993]
[1738865442349,23.76216993,190.86,190.79,23.76216993]
[1738865442549,23.76216993,190.83,190.76,29.00426993]
[1738865442748,23.76216993,190.82,190.76,5.2421]
[1738865442930,23.76216993,190.83,190.76,29.00426993]
[1738865443126,23.76216993,190.84,190.77,23.76216993]
[1738865443548,23.76216993,190.85,190.78,23.76216993]
[1738865443849,23.76216993,190.85,190.78,29.00366993]
[1738865444160,23.76216993,190.84,190.78,5.2415]
[1738865444445,23.76216993,190.82,190.76,5.242]
[1738865444646,23.76216993,190.8,190.74,5.2424]
[1738865444849,23.76216993,190.78,190.72,5.243]